bitfinex-derivatives/quotes_SOLF0:USTF0_20260226
["timestamp","ask_amount","ask_price","bid_price","bid_amount"]
[1772117766757,4.68039587,86.999,86.923,4.52172867]
[1772117767262,4.68039587,87.046,86.944,4.52172867]
[1772117767454,4.68039587,87.046,86.961,4.52172867]
[1772117767654,17.66861429,87.085,86.961,4.52172867]
[1772117767655,4.68039587,87.045,86.961,4.52172867]
[1772117768054,4.68039587,87.045,86.94,8.16997529]
[1772117768055,4.68039587,87.029,86.941,4.52172867]
[1772117768254,4.68039587,87.028,86.95,10.3504]
[1772117768757,8.16997529,87.05,86.951,10.3503]
[1772117768758,4.68039587,87.026,86.951,10.3503]
[1772117768958,4.68039587,87.026,86.952,4.52172867]
[1772117769355,4.68039587,87.026,86.96,8.16997529]
[1772117769754,4.68039587,87.048,86.961,4.52172867]
[1772117769950,8.16997529,87.1,87.001,4.52172867]
[1772117770254,170.73011658,87.156,87.021,4.52172867]
[1772117770452,8.16997529,87.11,87.04,10.3396]
[1772117770650,1.429e-05,87.085,87.041,4.52172867]
[1772117770849,1.429e-05,87.085,87.042,10.3395]
[1772117771052,1.429e-05,87.085,87.043,4.52172867]
[1772117771252,8.16997529,87.17,87.061,4.52172867]
[1772117771450,8.16997529,87.13,87.061,4.52172867]
[1772117771650,8.16997529,87.13,87.041,4.52172867]
[1772117771856,3.16710409,87.129,87.041,4.52172867]
[1772117772361,3.1754605,87.169,87.061,4.52172867]
[1772117772556,3.1754605,87.169,87.081,4.52172867]
[1772117772859,3.1754605,87.169,87.1,4.52172867]
[1772117773060,5.17096062,87.2,87.1,4.52172867]
[1772117773061,3.17451494,87.192,87.1,4.52172867]
[1772117773252,10.3198,87.209,87.132,4.52172867]
[1772117773460,1.99655766,87.238,87.141,4.52172867]
[1772117773753,1.99655766,87.238,87.098,160.7335]
[1772117773754,10.3094,87.296,87.196,4.7792582]
[1772117773953,160.2857,87.342,87.196,4.7792582]
[1772117773954,160.3778,87.292,87.196,4.7792582]
[1772117774159,160.3778,87.292,87.098,160.7335]
[1772117774160,31.07710979,87.27,87.171,4.7792582]
[1772117774359,31.07710979,87.25,87.131,4.7792582]
[1772117774563,31.07710979,87.23,87.131,4.7792582]
[1772117774766,31.07710979,87.23,87.068,160.7888]
[1772117774767,31.07710979,87.21,87.108,4.77981286]
[1772117775258,5.17096062,87.23,87.084,4.77981286]
[1772117775259,31.07710979,87.19,87.084,4.77981286]
[1772117775463,31.07710979,87.17,87.084,4.77981286]
[1772117775661,0.22872582,87.149,87.031,4.77981286]
[1772117775854,0.22872582,87.149,87.054,4.71429289]
[1772117776057,31.07710979,87.17,87.054,4.71429289]
[1772117776260,0.23904334,87.198,87.089,4.71429289]
[1772117776461,0.23904334,87.198,87.112,4.71429289]
[1772117776659,0.23904334,87.223,87.112,4.71429289]
[1772117776854,0.23809768,87.199,87.112,4.71429289]
[1772117777063,0.23809768,87.196,87.112,4.71429289]
[1772117777461,0.24829759,87.17,87.064,4.71476572]
[1772117777760,0.25761785,87.159,87.064,4.71476572]
[1772117777957,10.3229,87.182,87.08,10.3349]
[1772117778157,0.25761785,87.183,87.081,4.71010559]
[1772117778462,5.16371827,87.2,87.096,4.71010559]
[1772117778664,5.16371827,87.2,87.133,4.71010559]
[1772117778959,0.26685056,87.229,87.133,4.71010559]
[1772117779263,0.26685056,87.229,87.086,160.7555]
[1772117779264,0.26685056,87.227,87.135,4.71056094]
[1772117779662,5.16265432,87.23,87.135,4.71056094]
[1772117779663,0.27675046,87.226,87.135,4.71056094]
[1772117780261,0.25568539,87.219,87.135,4.71056094]
[1772117780966,0.26457616,87.199,87.091,4.72154746]
[1772117781262,0.26457616,87.199,87.101,4.72154746]
[1772117781263,10.58547616,87.199,87.101,4.72154746]
[1772117781469,0.27426281,87.198,87.101,4.72154746]
[1772117781862,10.3253,87.162,87.101,4.72154746]
[1772117782064,0.26668287,87.161,87.077,4.72533743]
[1772117782262,10.33,87.122,87.077,4.72533743]
[1772117782468,0.27628438,87.149,87.038,4.72533743]
[1772117783465,0.28482427,87.179,87.071,4.72578667]
[1772117784667,0.28482427,87.179,87.05,31.07710979]
[1772117784668,0.28482427,87.179,87.086,4.80178537]
[1772117784870,0.14120167,87.204,87.091,4.80229349]
[1772117785058,0.14120167,87.199,87.091,4.80229349]
[1772117785262,0.14120167,87.199,87.095,4.80229349]
[1772117785857,10.3249,87.165,87.095,4.80229349]
[1772117786258,36.24141012,87.2,87.095,4.80229349]
[1772117786259,0.15417512,87.164,87.095,4.80229349]
[1772117786471,5.16430033,87.2,87.068,4.8054458]
[1772117786472,0.15417512,87.158,87.068,4.8054458]
[1772117787059,0.15308329,87.138,87.031,4.80599171]
[1772117787466,10.3312,87.112,87.033,4.80599171]
[1772117787766,0.16219789,87.119,87.033,4.80599171]
[1772117788773,0.16219789,87.119,87.036,4.82875489]
[1772117789562,0.16219789,87.119,87.006,4.82926724]
[1772117789563,0.13351233,87.118,87.006,4.82926724]
[1772117789969,10.3348,87.082,87.008,4.80996613]
[1772117790274,0.13351233,87.118,87.008,4.80996613]
[1772117790467,10.3317,87.108,87.033,10.3405]
[1772117790670,0.13351233,87.118,87.034,4.80996613]
[1772117791371,10.3307,87.116,87.034,4.80996613]
[1772117791575,0.13351233,87.118,87.034,4.80996613]
[1772117791774,0.1328001,87.139,87.034,4.80996613]
[1772117791976,10.3306,87.118,87.035,4.83837247]
[1772117792274,0.1328001,87.139,87.035,4.83837247]
[1772117792470,0.14141513,87.119,87.035,4.83837247]
[1772117792669,10.3317,87.108,87.037,10.34]
[1772117792872,0.14141513,87.119,87.035,4.83837247]
[1772117793376,8.13955381,87.1,87.035,4.83837247]
[1772117793575,8.13955381,87.1,87.037,10.34]
[1772117793874,8.13955381,87.1,86.978,34.77]
[1772117793875,0.14820274,87.099,87.012,4.83927094]
[1772117794279,10.3354,87.077,87.012,4.83927094]
[1772117794482,8.13955381,87.08,87.012,4.83927094]
[1772117795578,8.13955381,87.08,87.013,4.83975467]
[1772117795876,10.3342,87.087,87.013,4.83975467]
[1772117796082,8.13955381,87.12,86.99,8.13955381]
[1772117796083,10.3306,87.117,87.047,10.3388]
[1772117796279,0.14855183,87.125,87.031,4.84746493]
[1772117796781,0.15674203,87.119,87.035,4.84746493]
[1772117797073,160.6086,87.166,87.01,8.13955381]
[1772117797074,0.15578503,87.139,87.041,4.84794343]
[1772117797275,10.3283,87.136,87.067,15.18434343]
[1772117797481,0.15578503,87.139,87.045,4.84794343]
[1772117797677,10.3319,87.107,87.045,4.84794343]
[1772117797974,0.24110741,87.142,87.045,4.84794343]
[1772117798176,10.3315,87.11,87.045,4.84794343]
[1772117798779,10.3289,87.132,87.065,10.3367]
[1772117798980,0.24821688,87.119,87.045,4.84794343]
[1772117799181,8.13955381,87.11,87.045,4.84794343]
[1772117799975,18.47105381,87.11,87.045,4.84794343]
[1772117800174,10.3315,87.11,87.045,4.84794343]
[1772117800577,10.3328,87.099,87.045,4.84794343]
[1772117800979,0.24821688,87.119,87.045,4.84794343]
[1772117801680,13.30604966,87.14,87.045,4.84794343]
[1772117801885,10.331,87.114,87.054,4.93332905]
[1772117802078,8.54951871,87.14,87.054,4.93332905]
[1772117803187,8.54951871,87.14,87.064,4.93332905]
[1772117803483,0.4099649,87.14,87.064,4.93332905]
[1772117804084,0.4099649,87.14,87.011,4.93332905]
[1772117804286,10.3319,87.106,87.045,10.339]
[1772117804486,0.382932,87.138,87.043,4.93332905]
[1772117804675,0.382932,87.119,87.043,4.93332905]
[1772117804874,10.3331,87.097,87.043,4.93332905]
[1772117805473,0.382932,87.119,87.011,4.93332905]
[1772117805877,10.3334,87.093,87.029,4.93332905]
[1772117806077,0.382932,87.119,87.029,4.93332905]
[1772117806475,10.3346,87.084,87.03,10.3408]
[1772117806780,0.382932,87.119,86.99,31.12976231]
[1772117806983,0.3951552,87.099,86.999,4.93332905]
[1772117807581,65.59976231,87.1,86.999,4.93332905]
[1772117807582,0.40232359,87.078,86.999,4.93332905]
[1772117808180,10.3374,87.06,87.008,10.3435]
[1772117809088,0.45586087,87.117,87.008,4.93332905]
[1772117809282,0.45586087,87.117,87.011,4.93332905]
[1772117809679,0.46284848,87.139,87.07,10.3361]
[1772117809879,0.46284848,87.139,87.055,4.93332905]
[1772117810188,10.3292,87.129,87.069,10.3362]
[1772117810383,0.46284848,87.139,87.069,10.3362]
[1772117810584,0.46284848,87.139,87.055,4.93332905]
[1772117811188,10.3292,87.129,87.068,10.3363]
[1772117811383,0.46773736,87.166,87.055,4.93332905]
[1772117812392,10.3263,87.154,87.085,4.93332905]
[1772117812592,0.46773736,87.166,87.085,4.93332905]
[1772117812987,10.3253,87.162,87.104,10.3321]
[1772117813296,0.46773736,87.166,87.085,4.93332905]
[1772117813693,34.47,87.205,87.085,4.93332905]
[1772117813694,0.55641118,87.19,87.085,4.93332905]
[1772117813895,0.55641118,87.19,87.091,4.93332905]
[1772117814193,10.3205,87.202,87.127,4.93332905]
[1772117814787,10.99256864,87.212,87.148,10.3268]
[1772117814989,10.3194,87.212,87.149,4.93332905]
[1772117815495,5.1651062,87.23,87.154,10.3261]
[1772117815796,0.67924397,87.236,87.131,4.93332905]
[1772117815992,10.3203,87.204,87.14,10.3278]
[1772117816395,0.67924397,87.236,87.141,4.60406212]
[1772117816692,0.67924397,87.236,87.145,4.60406212]
[1772117816884,0.83318906,87.229,87.145,4.60406212]
[1772117817693,0.83318906,87.229,87.125,4.60406212]
[1772117817898,1.17208119,87.202,87.103,4.60406212]
[1772117818096,1.17208119,87.189,87.103,4.60406212]
[1772117818492,1.17827061,87.169,87.061,4.60406212]
[1772117819193,10.3261,87.155,87.061,4.60406212]
[1772117819791,1.17827061,87.169,87.061,4.60406212]
[1772117819985,25.89979359,87.17,87.061,4.60406212]
[1772117819986,1.13907744,87.149,87.061,4.60406212]
[1772117820692,35.60907744,87.149,87.061,4.60406212]
[1772117820893,10.3315,87.11,87.061,4.60406212]
[1772117821495,1.15101415,87.106,87.018,4.60406212]
[1772117822096,10.3334,87.094,87.028,4.60406212]
[1772117822297,1.15101415,87.106,87.028,4.60406212]
[1772117822498,1.15101415,87.106,87.03,4.60406212]
[1772117823298,1.11031743,87.089,87.003,4.60406212]
[1772117823597,8.13829496,87.07,87.003,4.60406212]
[1772117823794,34.47,87.109,87.003,4.60406212]
[1772117823795,35.56849433,87.109,87.003,4.60406212]
[1772117823991,5.16362331,87.1,87.003,4.60406212]
[1772117824191,1.09849433,87.108,87.028,4.60406212]
[1772117825690,1.09849433,87.108,87.005,4.60406212]
[1772117825904,1.09784748,87.089,87.005,4.60406212]
[1772117826105,8.13829496,87.07,87.01,10.3432]
[1772117826705,8.13829496,87.11,87.011,4.60406212]
[1772117826897,8.13829496,87.11,86.98,8.13829496]
[1772117826898,1.10337696,87.109,87.035,4.60406212]
[1772117827401,1.10337696,87.109,87.036,10.3401]
[1772117827801,1.10337696,87.109,87.035,4.60406212]
[1772117828002,10.3329,87.098,87.035,4.60406212]
[1772117828402,1.10337696,87.109,87.035,4.60406212]
[1772117828600,8.13829496,87.12,87.035,4.60406212]
[1772117828800,1.10634967,87.119,87.035,4.60406212]
[1772117829002,10.3318,87.107,87.043,10.3392]
[1772117829202,10.3318,87.107,87.035,4.60406212]
[1772117829203,1.10634967,87.119,87.035,4.60406212]
[1772117829605,1.10634967,87.119,87.054,10.338]
[1772117829903,1.10634967,87.119,87.035,4.60406212]
[1772117830106,1.10634967,87.119,87.051,10.3384]
[1772117830298,1.10634967,87.119,87.041,4.60406212]
[1772117831001,1.28596798,87.143,87.041,4.60406212]
[1772117831207,10.3286,87.134,87.069,10.3362]
[1772117831401,1.28596798,87.143,87.063,4.60406212]
[1772117832204,10.33,87.122,87.063,4.60406212]
[1772117832404,1.28596798,87.143,87.063,4.60406212]
[1772117832705,1.29697616,87.139,87.063,4.60406212]
[1772117832911,10.3299,87.123,87.063,4.60406212]
[1772117833309,8.13829496,87.15,87.099,10.3327]
[1772117833508,10.3259,87.156,87.099,10.3327]
[1772117833806,1.30420995,87.149,87.092,10.3335]
[1772117834713,1.30420995,87.149,87.063,4.60406212]
[1772117835407,10.3271,87.147,87.079,4.60406212]
[1772117835617,1.31430526,87.139,87.058,4.60406212]
[1772117836210,10.3293,87.128,87.058,4.60406212]
[1772117836404,1.31430526,87.139,87.058,4.60406212]
[1772117836612,1.31430526,87.139,87.061,4.60406212]
[1772117836810,10.327,87.147,87.087,10.334]
[1772117837012,1.25535084,87.163,87.082,4.60406212]
[1772117838104,8.13829496,87.15,87.082,4.60406212]
[1772117838311,8.13829496,87.15,87.004,20.68050147]
[1772117838312,1.24509084,87.129,87.061,4.60406212]
[1772117838811,1.24509084,87.129,87.012,20.6861]
[1772117838812,1.24509084,87.129,87.038,4.60406212]
[1772117839408,1.24509084,87.129,87.039,4.60406212]
[1772117839610,8.13829496,87.11,87.039,4.60406212]
[1772117839816,8.13829496,87.11,87.012,10.343]
[1772117839817,10.3363,87.069,87.012,10.343]
[1772117840211,1.22310211,87.079,87.011,4.60406212]
[1772117841022,10.3383,87.052,87.011,4.60406212]
[1772117841221,1.22310211,87.079,87.011,4.60406212]
[1772117841514,1.22768966,87.091,87.011,4.60406212]
[1772117841715,1.22768966,87.078,86.961,4.60406212]
[1772117842520,1.22768966,87.078,86.987,10.3459]
[1772117842725,1.22768966,87.078,86.988,4.60406212]
[1772117843230,1.22768966,87.078,86.989,4.60406212]
[1772117844026,10.3378,87.057,86.989,4.60406212]
[1772117844432,1.22768966,87.078,86.989,4.60406212]
[1772117844931,10.3357,87.075,87.019,10.3422]
[1772117845228,10.3357,87.075,87.01,4.60406212]
[1772117845229,1.25111968,87.099,87.01,4.60406212]
[1772117845425,10.3352,87.079,87.018,10.3423]
[1772117846527,10.3341,87.088,87.01,4.60406212]
[1772117847025,1.25111968,87.099,87.01,4.60406212]
[1772117847229,1.28313023,87.089,87.01,4.60406212]
[1772117848629,1.28313023,87.089,86.988,4.92023417]
[1772117848630,1.27855596,87.088,86.988,4.92023417]
[1772117848930,1.278399,87.082,86.988,4.92023417]
[1772117849129,10.3396,87.041,86.941,4.92023417]
[1772117849325,1.278399,87.069,86.944,4.92023417]
[1772117849534,1.278399,87.069,86.961,4.92023417]
[1772117849835,10.3374,87.06,86.994,4.92023417]
[1772117850026,1.278399,87.069,86.994,4.92023417]
[1772117850628,1.28688044,87.068,86.961,4.92023417]
[1772117851130,10.3415,87.026,86.972,4.92023417]
[1772117851833,10.3403,87.036,86.986,4.92023417]
[1772117852634,34.47,87.069,86.986,4.92023417]
[1772117852635,10.3413,87.027,86.986,4.92023417]
[1772117853031,20.7837863,87.07,86.92,161.0614]
[1772117853032,4.79520352,87.039,86.951,10.3502]
[1772117853234,4.79520352,87.039,86.92,20.7837863]
[1772117853430,4.79520352,87.019,86.903,20.712]
[1772117853629,4.79520352,87.019,86.9,20.7837863]
[1772117854339,4.79520352,87.041,86.92,20.7837863]
[1772117854530,10.3412,87.028,86.92,20.7837863]
[1772117854731,4.79520352,87.041,86.92,20.7837863]
[1772117855131,10.3422,87.02,86.964,10.3487]
[1772117855729,10.3431,87.012,86.964,10.3487]
[1772117855928,10.3431,87.012,86.962,4.92023417]
[1772117856232,20.7837863,87.05,86.921,4.92023417]
[1772117856233,4.79520352,87.039,86.921,4.92023417]
[1772117856432,4.79520352,87.018,86.936,10.3521]
[1772117856630,4.79520352,87.018,86.921,4.92023417]
[1772117857025,10.3448,86.998,86.921,4.92023417]
[1772117857227,4.79520352,87.018,86.935,10.3521]
[1772117857427,4.79520352,87.018,86.921,4.92023417]
[1772117858027,4.79520352,87.018,86.961,10.3491]
[1772117858229,4.79520352,87.018,86.9,5.11948286]
[1772117858932,4.61111905,87.008,86.905,5.11948286]
[1772117860136,4.61111905,87.008,86.927,10.3531]
[1772117860437,10.3495,86.958,86.901,10.3562]
[1772117860634,4.61111905,86.957,86.882,5.11948286]
[1772117861339,4.61111905,86.957,86.883,5.11948286]
[1772117861637,8.16591217,86.97,86.916,10.3545]
[1772117861638,10.3483,86.968,86.916,10.3545]
[1772117861832,8.16591217,86.97,86.883,5.11948286]
[1772117862226,4.61111905,86.98,86.891,5.11948286]
[1772117863730,10.3479,86.971,86.921,10.3538]
[1772117863934,4.61111905,86.98,86.921,10.3538]
[1772117864336,4.61111905,86.98,86.912,5.11948286]
[1772117864537,8.16591217,86.99,86.912,5.11948286]
[1772117864729,4.61111905,87.002,86.912,5.11948286]
[1772117864932,10.3469,86.98,86.927,10.3531]
[1772117865132,4.61111905,87.002,86.912,5.11948286]
[1772117865535,4.61111905,87.002,86.931,10.3526]
[1772117866235,4.61111905,87.002,86.936,10.3521]
[1772117866730,4.61111905,87.002,86.932,5.11948286]
[1772117866933,10.3452,86.994,86.944,10.3511]
[1772117867131,4.61111905,87.002,86.932,5.11948286]
[1772117868345,8.16591217,87.01,86.932,5.11948286]
[1772117868540,4.61111905,87.023,86.932,5.11948286]
[1772117869440,4.61111905,87.008,86.911,5.11948286]
[1772117869839,10.3464,86.984,86.937,10.3519]
[1772117870046,4.61111905,87.029,86.938,5.11948286]
[1772117870449,4.61111905,87.029,86.941,5.11948286]
[1772117870948,4.61111905,87.029,86.968,5.11948286]
[1772117871137,4.61111905,87.049,86.968,5.11948286]
[1772117871743,4.61111905,87.029,86.968,5.11948286]
[1772117871937,4.61111905,87.029,86.94,8.16591217]
[1772117871938,4.61111905,87.029,86.941,5.11948286]
[1772117872740,4.61111905,87.009,86.941,5.11948286]
[1772117873345,10.3457,86.99,86.941,5.11948286]
[1772117873541,4.61111905,87.009,86.941,5.11948286]
[1772117874442,171.1428888,87.095,86.89,203.75401217]
[1772117874443,4.61111905,87.031,86.96,5.11948286]
[1772117874649,160.7235,87.104,86.961,5.11948286]
[1772117874650,4.61111905,87.049,86.961,5.11948286]
[1772117875250,4.61111905,87.039,86.961,5.11948286]
[1772117875654,10.3426,87.016,86.963,10.3488]
[1772117875851,10.3426,87.016,86.963,15.46828286]
[1772117876051,4.61111905,87.039,86.963,15.46828286]
[1772117876351,4.61111905,87.039,86.813,35.16718643]
[1772117876352,4.70515675,87.019,86.942,4.76761045]
[1772117876550,4.70515675,86.999,86.911,4.76761045]
[1772117876744,4.70515675,87.018,86.955,10.3497]
[1772117877055,4.70515675,87.018,86.949,4.76761045]
[1772117877757,4.70515675,87.018,86.929,4.76761045]
[1772117878157,4.70515675,87.018,86.931,4.76761045]
[1772117878359,4.70515675,87.039,86.931,4.76761045]
[1772117878750,4.70515675,87.039,86.953,4.76761045]
[1772117879455,4.70515675,87.039,86.969,10.348]
[1772117879854,10.3421,87.02,86.969,10.348]
[1772117880152,4.70515675,87.039,86.969,10.348]
[1772117880359,4.70515675,87.039,86.979,10.3469]
[1772117880752,4.70515675,87.039,86.951,4.76761045]
[1772117880952,10.343,87.013,86.951,4.76761045]
[1772117881259,4.70515675,86.999,86.928,4.76761045]
[1772117881750,10.3466,86.982,86.93,10.3528]
[1772117881952,4.70515675,86.999,86.928,4.76761045]
[1772117882151,10.3475,86.975,86.928,4.76761045]
[1772117882356,10.3475,86.975,86.92,10.3539]
[1772117882557,4.70515675,86.998,86.907,4.76761045]
[1772117882951,8.15121622,86.98,86.907,4.76761045]
[1772117883151,8.15121622,86.98,86.918,10.3542]
[1772117883352,4.70515675,86.979,86.907,4.76761045]
[1772117883650,4.70515675,86.979,86.851,161.1895]
[1772117883651,4.70515675,86.979,86.896,10.3568]
[1772117883855,4.70515675,86.979,86.886,4.76761045]
[1772117884161,4.70515675,86.959,86.886,4.76761045]
[1772117884557,10.3521,86.936,86.886,4.76761045]
[1772117884859,4.70515675,86.959,86.886,4.76761045]
[1772117885064,10.3495,86.958,86.903,10.356]
[1772117885256,4.70515675,86.98,86.9,8.15121622]
[1772117885462,4.70515675,86.98,86.901,4.76761045]
[1772117886455,8.15121622,86.98,86.901,4.76761045]
[1772117886761,10.3503,86.951,86.901,4.76761045]
[1772117886949,4.70515675,86.979,86.901,4.76761045]
[1772117887257,4.70515675,86.979,86.89,8.15121622]
[1772117887258,4.70515675,86.979,86.913,4.76761045]
[1772117888562,10.3473,86.977,86.922,10.3536]
[1772117888763,10.3473,86.977,86.922,15.12121045]
[1772117888956,39.17515675,86.996,86.891,4.76761045]
[1772117889151,4.70515675,86.979,86.891,4.76761045]
[1772117889556,8.15121622,86.96,86.891,4.76761045]
[1772117889755,8.15121622,86.96,86.844,21.14928379]
[1772117889756,4.70515675,86.959,86.872,4.76761045]
[1772117890360,4.70515675,86.959,86.875,4.76761045]
[1772117890858,10.3501,86.953,86.893,4.76761045]
[1772117892062,10.3501,86.953,86.895,10.357]
[1772117892255,4.70515675,86.969,86.893,4.76761045]
[1772117892569,4.70515675,86.958,86.868,4.76761045]
[1772117892753,4.70515675,86.938,86.846,4.76761045]
[1772117892958,4.70515675,86.919,86.846,4.76761045]
[1772117893569,10.3564,86.9,86.846,4.76761045]
[1772117893762,4.70515675,86.919,86.846,4.76761045]
[1772117894268,10.3553,86.91,86.855,10.3616]
[1772117894861,10.3544,86.917,86.863,10.3607]
[1772117895055,4.70515675,86.939,86.863,4.76761045]
[1772117895458,4.70515675,86.917,86.818,4.76761045]
[1772117896064,4.70515675,86.917,86.837,4.76761045]
[1772117896463,10.3571,86.895,86.837,4.76761045]
[1772117896765,4.70515675,86.917,86.837,4.76761045]
[1772117897464,10.3557,86.906,86.847,4.76761045]
[1772117898659,4.70515675,86.937,86.851,4.76761045]
[1772117899165,10.3532,86.927,86.874,10.3594]
[1772117899562,10.3532,86.927,86.871,4.76761045]
[1772117900264,10.3532,86.927,86.872,10.3596]
[1772117900665,4.70515675,86.937,86.871,4.76761045]
[1772117900666,10.3552,86.91,86.871,4.76761045]
[1772117900864,10.3552,86.91,86.854,10.3618]
[1772117901262,4.70515675,86.937,86.846,4.76761045]
[1772117901463,8.15121622,86.94,86.83,8.15121622]
[1772117901464,4.70515675,86.918,86.83,8.15121622]
[1772117901666,4.70515675,86.909,86.831,4.76761045]
[1772117902667,10.3564,86.9,86.852,10.362]
[1772117902868,4.70515675,86.929,86.831,4.76761045]
[1772117903368,4.70515675,86.929,86.868,10.3601]
[1772117903568,4.70515675,86.949,86.854,4.76761045]
[1772117903870,10.3525,86.933,86.882,10.3585]
[1772117904071,4.70515675,86.949,86.871,4.76761045]
[1772117904468,10.3523,86.935,86.888,10.3577]
[1772117904664,4.70515675,86.949,86.871,4.76761045]
[1772117904866,4.70515675,86.969,86.871,4.76761045]
[1772117905169,10.35,86.954,86.907,10.3555]
[1772117905368,4.70515675,86.969,86.897,4.76761045]
[1772117906271,5.24107004,86.959,86.875,5.07740254]
[1772117906665,10.3516,86.941,86.889,10.3576]
[1772117906862,5.24107004,86.939,86.853,5.07740254]
[1772117907172,8.15121622,86.92,86.853,5.07740254]
[1772117907367,10.3563,86.901,86.821,5.07740254]
[1772117907563,5.24107004,86.919,86.821,5.07740254]
[1772117908273,5.24107004,86.919,86.841,5.07740254]
[1772117908476,5.24107004,86.919,86.867,10.3602]
[1772117908673,5.24107004,86.919,86.841,5.07740254]
[1772117908975,13.39228626,86.94,86.841,5.07740254]
[1772117909567,5.24107004,86.939,86.862,5.07740254]
[1772117911374,10.3537,86.923,86.873,10.3595]
[1772117911672,5.24107004,86.93,86.844,5.07740254]
[1772117912664,10.3539,86.921,86.864,10.3607]
[1772117912869,20.6991,86.958,86.83,8.15121622]
[1772117912870,5.24107004,86.955,86.851,5.07740254]
[1772117913071,5.24107004,86.955,86.871,5.07740254]
[1772117913374,5.24107004,86.955,86.892,10.3573]
[1772117913569,5.24107004,86.955,86.871,5.07740254]
[1772117914164,34.47,86.99,86.893,5.07740254]
[1772117914165,5.24107004,86.976,86.893,5.07740254]
[1772117915375,34.47,86.997,86.917,5.07740254]
[1772117915376,5.24107004,86.997,86.917,5.07740254]
[1772117916177,10.3452,86.994,86.917,5.07740254]
[1772117916673,5.24107004,87.019,86.958,10.3494]
[1772117916980,5.24107004,87.019,86.951,5.07740254]
[1772117917871,10.3434,87.01,86.951,5.07740254]
[1772117918073,5.23926148,87.009,86.931,5.01134931]
[1772117918268,5.23926148,87.046,86.948,5.01134931]
[1772117918466,5.23926148,87.039,86.951,5.01134931]
[1772117919068,10.3406,87.033,86.973,10.3476]
[1772117919573,10.3406,87.033,86.951,5.01134931]
[1772117919979,10.3417,87.023,86.951,5.01134931]
[1772117920281,5.23926148,87.022,86.951,5.01134931]
[1772117920673,5.23926148,87.022,86.971,10.3478]
[1772117921078,8.15121622,87.04,86.951,5.01134931]
[1772117921272,5.23926148,87.043,86.971,5.01134931]
[1772117921872,5.23926148,87.043,86.987,10.3459]
[1772117922072,5.23926148,87.043,86.971,5.01134931]
[1772117922481,5.23926148,87.041,86.971,5.01134931]
[1772117922979,10.3411,87.028,86.971,5.01134931]
[1772117924180,10.3411,87.028,86.964,10.3487]
[1772117924483,5.23926148,87.041,86.973,5.01134931]
[1772117924978,5.23926148,87.059,86.973,5.01134931]
[1772117925180,5.23926148,87.059,86.983,10.3465]
[1772117925382,5.23926148,87.059,86.973,5.01134931]
[1772117926880,5.23926148,87.039,86.952,5.01134931]
[1772117927982,5.23926148,87.039,86.957,10.3496]
[1772117928372,10.3415,87.026,86.957,5.01134931]
[1772117928684,5.23926148,87.039,86.961,5.01134931]
[1772117928884,5.23926148,87.075,86.976,5.01134931]
[1772117929077,5.23926148,87.069,86.981,5.01134931]
[1772117930783,5.23926148,87.068,86.981,5.01134931]
[1772117930981,10.3399,87.039,86.984,10.3463]
[1772117931382,5.23926148,87.068,86.984,10.3463]
[1772117931583,5.23926148,87.068,86.981,5.01134931]
[1772117931978,5.23926148,87.059,86.981,5.01134931]
[1772117932689,10.3391,87.046,86.981,5.01134931]
[1772117932883,5.23926148,87.059,86.981,5.01134931]
[1772117933083,20.6697,87.082,86.96,13.16256553]
[1772117933084,5.23926148,87.049,86.96,13.16256553]
[1772117933388,8.15121622,87.05,86.96,13.16256553]
[1772117933389,5.23926148,87.03,86.96,13.16256553]
[1772117933781,10.3441,87.003,86.96,5.01134931]
[1772117933982,5.23926148,87.029,86.941,5.01134931]
[1772117934983,10.3454,86.992,86.941,5.01134931]
[1772117935184,5.23926148,87.006,86.941,5.01134931]
[1772117935384,5.23926148,87.006,86.921,5.01134931]
[1772117935582,5.23926148,87.006,86.927,5.01134931]
[1772117935984,5.23926148,87.006,86.931,4.95169957]
[1772117936388,10.3446,86.999,86.947,10.3507]
[1772117936683,8.15663391,87.02,86.931,4.95169957]
[1772117936885,10.3428,87.015,86.962,10.3489]
[1772117937083,5.23722923,87.026,86.959,4.95169957]
[1772117937885,10.3426,87.016,86.959,4.95169957]
[1772117938079,8.15663391,87.04,86.959,4.95169957]
[1772117938080,5.23722923,87.048,86.959,4.95169957]
[1772117938384,10.3416,87.024,86.969,10.3481]
[1772117938888,34.47,87.059,86.961,10.3491]
[1772117938889,5.23722923,87.039,86.961,10.3491]
[1772117939086,5.23722923,87.039,86.959,4.95169957]
[1772117939686,10.3419,87.022,86.976,10.3473]
[1772117939882,10.3419,87.022,86.977,4.95169957]
[1772117940086,10.3419,87.022,86.95,8.15663391]
[1772117940087,5.23722923,87.063,86.991,4.95169957]
[1772117940884,5.23722923,87.063,86.971,4.95169957]
[1772117941286,10.3411,87.029,86.983,10.3464]